[Event "Schack-SM 2024: Junior-SM"]
[Site "Fortnox Arena, Hejaregatan 5, Vaxjo, Sweden"]
[Date "2024.07.07"]
[Round "9.1"]
[White "Strom-Engdahl, Alexander"]
[Black "Seo, Jung Hyun"]
[Result "1-0"]
[TimeControl "90 minutes for 40 moves + 30 minutes for the rest of the game + 30 seconds per move from move one."]
[WhiteElo "2191"]
[BlackElo "2137"]

1. e4 {[%clk 01:30:08]} {[%emt 00:00:51]} c6 {[%clk 01:30:50]} {[%emt
00:00:10]} 2. d4 {[%clk 01:30:34]} {[%emt 00:00:05]} d5 {[%clk 01:31:13]}
{[%emt 00:00:07]} 3. e5 {[%clk 01:30:58]} {[%emt 00:00:06]} c5 {[%clk
01:29:38]} {[%emt 00:02:05]} 4. dxc5 {[%clk 01:31:17]} {[%emt 00:00:11]} e6
{[%clk 01:30:04]} {[%emt 00:00:03]} 5. a3 {[%clk 01:31:40]} {[%emt 00:00:07]}
Bxc5 {[%clk 01:30:24]} {[%emt 00:00:10]} 6. Qg4 {[%clk 01:32:02]} {[%emt
00:00:08]} Kf8 {[%clk 01:16:28]} {[%emt 00:14:27]} 7. Nf3 {[%clk 01:31:56]}
{[%emt 00:00:35]} Nc6 {[%clk 01:15:41]} {[%emt 00:01:17]} 8. Bd3 {[%clk
01:30:38]} {[%emt 00:01:49]} Nge7 {[%clk 01:12:54]} {[%emt 00:03:17]} 9. b4
{[%clk 01:29:52]} {[%emt 00:01:16]} Bb6 {[%clk 01:13:06]} {[%emt 00:00:18]} 10.
b5 {[%clk 01:25:41]} {[%emt 00:04:41]} Na5 {[%clk 01:12:14]} {[%emt 00:01:23]}
11. O-O {[%clk 01:20:56]} {[%emt 00:05:15]} Bd7 {[%clk 01:09:16]} {[%emt
00:03:28]} 12. a4 {[%clk 01:15:29]} {[%emt 00:05:57]} Rc8 {[%clk 01:03:50]}
{[%emt 00:05:56]} 13. Nbd2 {[%clk 01:12:21]} {[%emt 00:03:38]} Nf5 {[%clk
00:53:52]} {[%emt 00:10:28]} 14. Ba3+ {[%clk 01:02:28]} {[%emt 00:10:24]} Kg8
{[%clk 00:52:37]} {[%emt 00:01:45]} 15. Rac1 {[%clk 00:58:23]} {[%emt
00:04:35]} Bc5 {[%clk 00:34:44]} {[%emt 00:18:23]} 16. Bxc5 {[%clk 00:53:08]}
{[%emt 00:05:45]} Rxc5 {[%clk 00:35:13]} 17. c4 {[%clk 00:53:24]} {[%emt
00:00:14]} Qc8 {[%clk 00:21:57]} {[%emt 00:13:47]} 18. Rc2 {[%clk 00:46:45]}
{[%emt 00:07:09]} h6 {[%clk 00:17:33]} {[%emt 00:04:54]} 19. Rfc1 {[%clk
00:45:13]} {[%emt 00:02:01]} b6 {[%clk 00:17:47]} {[%emt 00:00:16]} 20. cxd5
{[%clk 00:39:40]} {[%emt 00:06:03]} exd5 {[%clk 00:18:09]} {[%emt 00:00:08]} 21.
Qb4 {[%clk 00:39:44]} {[%emt 00:00:26]} Rxc2 {[%clk 00:15:41]} {[%emt
00:02:59]} 22. Rxc2 {[%clk 00:39:46]} {[%emt 00:00:28]} Qd8 {[%clk 00:13:37]}
{[%emt 00:02:33]} 23. g4 {[%clk 00:35:09]} {[%emt 00:05:06]} Nh4 {[%clk
00:11:43]} {[%emt 00:02:25]} 24. Qd6 {[%clk 00:34:36]} {[%emt 00:01:03]} Nc4
{[%clk 00:11:40]} {[%emt 00:00:33]} 25. Bxc4 {[%clk 00:34:19]} {[%emt
00:00:48]} Nxf3+ {[%clk 00:11:58]} {[%emt 00:00:12]} 26. Nxf3 {[%clk 00:34:44]}
{[%emt 00:00:05]} dxc4 {[%clk 00:12:20]} {[%emt 00:00:08]} 27. Rd2 {[%clk
00:34:53]} {[%emt 00:00:21]} Qa8 {[%clk 00:12:44]} {[%emt 00:00:06]} 28. Qxd7
{[%clk 00:26:04]} {[%emt 00:09:19]} Qxf3 {[%clk 00:13:12]} {[%emt 00:00:02]} 29.
Qc8+ {[%clk 00:26:25]} {[%emt 00:00:08]} Kh7 {[%clk 00:13:38]} {[%emt
00:00:05]} 30. Qxc4 {[%clk 00:26:48]} {[%emt 00:00:07]} Re8 {[%clk 00:12:56]}
{[%emt 00:01:12]} 31. Re2 {[%clk 00:25:11]} {[%emt 00:02:07]} Kg8 {[%clk
00:12:21]} {[%emt 00:01:05]} 32. Re3 {[%clk 00:23:05]} {[%emt 00:02:36]} Qd1+
{[%clk 00:12:39]} {[%emt 00:00:12]} 33. Kg2 {[%clk 00:23:31]} {[%emt 00:00:05]}
Re6 {[%clk 00:07:15]} {[%emt 00:05:54]} 34. Qe4 {[%clk 00:21:09]} {[%emt
00:02:51]} Re8 {[%clk 00:03:41]} {[%emt 00:04:05]} 35. h3 {[%emt 00:02:38]} h5
{[%emt 00:00:32]} 36. Re1 {[%clk 00:16:49]} {[%emt 00:02:39]} Qd2 {[%clk
00:04:03]} {[%emt 00:00:08]} 37. Re2 {[%emt 00:01:02]} Qd1 {[%clk 00:02:20]}
{[%emt 00:01:10]} 38. f4 h4 {[%emt 00:07:31]} 39. Qc4 {[%clk 00:11:11]} {[%emt
00:00:07]} Rd8 {[%clk 00:01:57]} {[%emt 00:00:53]} 40. e6 fxe6 {[%emt
00:01:43]} 41. Qxe6+ {[%clk 00:10:10]} {[%emt 00:00:48]} Kh8 {[%clk 00:15:58]}
{[%emt 00:04:03]} 42. g5 Rd2 {[%emt 00:19:36]} 43. Qe8+ {[%clk 00:31:48]}
{[%emt 00:02:42]} Kh7 {[%emt 00:00:45]} 44. g6+ {[%clk 00:31:30]} {[%emt
00:00:04]} Kxg6 {[%clk 00:14:35]} {[%emt 00:00:30]} 1-0

[Event "Schack-SM 2024: Junior-SM"]
[Site "Fortnox Arena, Hejaregatan 5, Vaxjo, Sweden"]
[Date "2024.07.07"]
[Round "9.2"]
[White "Grahn, Vidar"]
[Black "Soderstrom, Adrian"]
[Result "1/2-1/2"]
[TimeControl "90 minutes for 40 moves + 30 minutes for the rest of the game + 30 seconds per move from move one."]
[WhiteTitle "FM"]
[BlackTitle "FM"]
[WhiteElo "2264"]
[BlackElo "2351"]

1. Nf3 {[%clk 01:30:55]} {[%emt 00:00:04]} Nf6 {[%clk 01:30:32]} {[%emt
00:00:28]} 2. g3 {[%clk 01:31:09]} {[%emt 00:00:17]} g6 {[%clk 01:30:45]}
{[%emt 00:00:16]} 3. Bg2 {[%clk 01:31:35]} {[%emt 00:00:03]} Bg7 {[%clk
01:31:10]} {[%emt 00:00:05]} 4. O-O {[%clk 01:31:50]} {[%emt 00:00:15]} O-O
{[%clk 01:31:29]} {[%emt 00:00:10]} 5. d4 {[%clk 01:32:14]} {[%emt 00:00:08]}
d5 {[%clk 01:31:54]} {[%emt 00:00:05]} 6. c4 {[%clk 01:32:38]} {[%emt
00:00:06]} c6 {[%clk 01:32:21]} {[%emt 00:00:03]} 7. cxd5 {[%clk 01:32:40]}
{[%emt 00:00:28]} cxd5 {[%clk 01:32:41]} {[%emt 00:00:08]} 8. Nc3 {[%clk
01:32:57]} {[%emt 00:00:15]} Ne4 {[%clk 01:31:50]} {[%emt 00:01:21]} 9. Ne5
{[%clk 01:28:59]} {[%emt 00:04:28]} Bf5 {[%clk 01:29:34]} {[%emt 00:02:46]} 10.
Be3 {[%clk 01:23:09]} {[%emt 00:06:20]} Nxc3 {[%clk 01:28:10]} {[%emt
00:01:53]} 1/2-1/2

[Event "Schack-SM 2024: Junior-SM"]
[Site "Fortnox Arena, Hejaregatan 5, Vaxjo, Sweden"]
[Date "2024.07.07"]
[Round "9.3"]
[White "Rasti, Arvin"]
[Black "Nilsson, Oliver"]
[Result "1/2-1/2"]
[TimeControl "90 minutes for 40 moves + 30 minutes for the rest of the game + 30 seconds per move from move one."]
[WhiteTitle "FM"]
[WhiteElo "2210"]
[BlackElo "2099"]

1. Nf3 {[%clk 01:26:16]} {[%emt 00:04:43]} Nf6 {[%clk 01:30:54]} {[%emt
00:00:07]} 2. d4 {[%clk 01:25:44]} {[%emt 00:01:02]} d5 {[%clk 01:31:19]}
{[%emt 00:00:05]} 3. c4 {[%clk 01:25:54]} {[%emt 00:00:21]} c6 {[%clk
01:31:45]} {[%emt 00:00:03]} 4. Qc2 {[%clk 01:26:06]} {[%emt 00:00:18]} g6
{[%clk 01:32:10]} {[%emt 00:00:05]} 5. Bf4 {[%clk 01:26:18]} {[%emt 00:00:19]}
Bg7 {[%clk 01:32:34]} {[%emt 00:00:06]} 6. e3 {[%clk 01:26:39]} {[%emt
00:00:08]} O-O {[%clk 01:32:38]} {[%emt 00:00:26]} 7. Nc3 {[%clk 01:26:45]}
{[%emt 00:00:24]} Bf5 {[%clk 01:25:07]} {[%emt 00:08:01]} 8. Qb3 {[%clk
01:26:23]} {[%emt 00:00:53]} Qb6 {[%clk 01:25:32]} {[%emt 00:00:05]} 9. Be2
{[%clk 01:22:22]} {[%emt 00:04:30]} Nbd7 {[%clk 01:21:01]} {[%emt 00:05:01]} 10.
h3 {[%clk 01:22:12]} {[%emt 00:00:40]} dxc4 {[%clk 01:18:35]} {[%emt 00:02:57]}
11. Bxc4 {[%clk 01:22:20]} {[%emt 00:00:21]} Qxb3 {[%clk 01:17:50]} {[%emt
00:01:16]} 12. Bxb3 {[%clk 01:22:32]} {[%emt 00:00:16]} Bd3 {[%clk 01:15:38]}
{[%emt 00:02:42]} 13. O-O-O {[%clk 01:21:22]} {[%emt 00:01:40]} Ba6 {[%clk
01:14:41]} {[%emt 00:01:28]} 14. e4 {[%clk 01:21:26]} {[%emt 00:00:27]} Nh5
{[%clk 01:13:57]} {[%emt 00:01:13]} 15. Be3 {[%clk 01:18:23]} {[%emt 00:03:32]}
e5 {[%clk 01:13:14]} {[%emt 00:01:13]} 16. dxe5 {[%clk 01:18:27]} {[%emt
00:00:27]} Nxe5 {[%clk 01:13:25]} {[%emt 00:00:19]} 17. Nxe5 {[%clk 01:18:48]}
{[%emt 00:00:09]} Bxe5 {[%clk 01:13:45]} {[%emt 00:00:10]} 18. Bc5 {[%clk
01:19:06]} {[%emt 00:00:12]} Rfd8 {[%clk 01:13:17]} {[%emt 00:00:57]} 19. Rxd8+
{[%clk 01:17:39]} {[%emt 00:01:58]} Rxd8 {[%clk 01:13:42]} {[%emt 00:00:05]} 20.
Bxa7 {[%clk 01:14:19]} {[%emt 00:03:49]} Nf4 {[%clk 01:08:14]} {[%emt
00:05:58]} 21. g3 {[%clk 01:14:40]} {[%emt 00:00:10]} Bxc3 {[%clk 01:01:35]}
{[%emt 00:07:09]} 22. bxc3 {[%clk 01:14:30]} {[%emt 00:00:40]} Ne2+ {[%clk
01:01:48]} {[%emt 00:00:17]} 23. Kc2 {[%clk 01:09:53]} {[%emt 00:05:07]} Bd3+
{[%clk 01:01:17]} {[%emt 00:01:02]} 24. Kb2 {[%clk 01:10:17]} {[%emt 00:00:06]}
Bxe4 {[%clk 01:00:48]} {[%emt 00:00:58]} 25. Rd1 {[%clk 01:07:16]} {[%emt
00:03:30]} Rxd1 {[%clk 01:00:53]} {[%emt 00:00:26]} 26. Bxd1 {[%clk 01:07:44]}
{[%emt 00:00:02]} Bd3 {[%clk 01:00:11]} {[%emt 00:01:12]} 27. h4 {[%clk
01:06:06]} {[%emt 00:02:07]} h6 {[%clk 00:59:05]} {[%emt 00:01:37]} 28. Be3
{[%clk 01:05:53]} {[%emt 00:00:42]} Kg7 {[%clk 00:59:26]} {[%emt 00:00:10]} 29.
Ka3 {[%clk 01:05:20]} {[%emt 00:01:03]} g5 {[%clk 00:57:17]} {[%emt 00:02:39]}
30. hxg5 {[%clk 01:04:26]} {[%emt 00:01:24]} hxg5 {[%clk 00:57:42]} {[%emt
00:00:06]} 31. Kb4 {[%clk 01:04:28]} {[%emt 00:00:27]} Kg6 {[%clk 00:57:11]}
{[%emt 00:01:01]} 32. Bb3 {[%clk 01:03:09]} {[%emt 00:01:48]} f5 {[%clk
00:48:37]} {[%emt 00:09:05]} 33. Be6 {[%clk 01:00:30]} {[%emt 00:03:09]} f4
{[%clk 00:46:36]} {[%emt 00:02:32]} 34. gxf4 {[%clk 01:00:52]} {[%emt
00:00:07]} Nxf4 {[%clk 00:47:01]} {[%emt 00:00:05]} 35. Bxf4 {[%clk 01:01:02]}
{[%emt 00:00:20]} gxf4 {[%clk 00:47:27]} {[%emt 00:00:04]} 36. Ka5 {[%clk
01:00:29]} {[%emt 00:01:02]} Bf5 {[%clk 00:42:57]} {[%emt 00:05:00]} 37. Bb3
{[%clk 00:53:15]} {[%emt 00:07:44]} f3 {[%clk 00:14:03]} {[%emt 00:29:25]} 38.
Kb6 {[%clk 00:51:02]} {[%emt 00:02:43]} Kg5 {[%clk 00:14:04]} {[%emt 00:00:29]}
39. Kxb7 {[%clk 00:50:20]} {[%emt 00:01:12]} Kh4 {[%clk 00:11:58]} {[%emt
00:02:35]} 40. Bd1 {[%clk 00:42:17]} {[%emt 00:08:34]} Be4 {[%clk 00:12:17]}
{[%emt 00:00:11]} 41. Kb6 {[%clk 00:42:13]} {[%emt 00:00:34]} Kh3 {[%clk
00:11:52]} {[%emt 00:00:55]} 42. c4 {[%clk 00:41:03]} {[%emt 00:01:40]} Kg2
{[%clk 00:11:07]} {[%emt 00:01:14]} 43. c5 {[%clk 00:41:14]} {[%emt 00:00:20]}
Kxf2 {[%clk 00:11:32]} {[%emt 00:00:05]} 44. a4 {[%clk 00:40:22]} {[%emt
00:01:22]} Ke3 {[%clk 00:10:12]} {[%emt 00:01:50]} 45. Bxf3 {[%clk 00:40:32]}
{[%emt 00:00:20]} Bxf3 {[%clk 00:10:37]} {[%emt 00:00:06]} 46. a5 {[%clk
00:40:56]} {[%emt 00:00:05]} Be2 {[%clk 00:11:00]} {[%emt 00:00:07]} 47. Kxc6
{[%clk 00:41:09]} {[%emt 00:00:17]} Kd4 {[%clk 00:11:00]} {[%emt 00:00:30]} 48.
Kd6 {[%clk 00:38:53]} {[%emt 00:02:45]} Ba6 {[%clk 00:11:03]} {[%emt 00:00:28]}
49. Kc6 {[%clk 00:36:21]} {[%emt 00:03:02]} Be2 {[%clk 00:10:36]} {[%emt
00:00:57]} 50. Kb6 {[%clk 00:36:12]} {[%emt 00:00:40]} Kd5 {[%clk 00:10:28]}
{[%emt 00:00:38]} 51. c6 {[%clk 00:36:11]} {[%emt 00:00:29]} Kd6 {[%clk
00:10:50]} {[%emt 00:00:09]} 52. c7 {[%clk 00:36:14]} {[%emt 00:00:27]} Ba6
{[%clk 00:11:08]} {[%emt 00:00:12]} 53. c8=N {[%clk 00:35:51]} {[%emt
00:00:53]} Bxc8 {[%clk 00:11:28]} {[%emt 00:00:10]} 54. a6 {[%clk 00:36:18]}
{[%emt 00:00:03]} Bxa6 {[%clk 00:11:51]} {[%emt 00:00:07]} 1/2-1/2

[Event "Schack-SM 2024: Junior-SM"]
[Site "Fortnox Arena, Hejaregatan 5, Vaxjo, Sweden"]
[Date "2024.07.07"]
[Round "9.4"]
[White "Frank, Anton 2006"]
[Black "Wernberg, Hugo"]
[Result "1/2-1/2"]
[TimeControl "90 minutes for 40 moves + 30 minutes for the rest of the game + 30 seconds per move from move one."]
[BlackTitle "FM"]
[WhiteElo "2131"]
[BlackElo "2208"]

1. e4 {[%clk 01:30:26]} {[%emt 00:00:34]} e5 {[%clk 01:30:53]} {[%emt
00:00:08]} 2. Nf3 {[%clk 01:30:49]} {[%emt 00:00:05]} Nc6 {[%clk 01:31:17]}
{[%emt 00:00:08]} 3. Bb5 {[%clk 01:31:12]} {[%emt 00:00:06]} a6 {[%clk
01:31:42]} {[%emt 00:00:06]} 4. Ba4 {[%clk 01:31:35]} {[%emt 00:00:06]} Nf6
{[%clk 01:32:08]} {[%emt 00:00:04]} 5. O-O {[%clk 01:31:48]} {[%emt 00:00:17]}
Be7 {[%clk 01:32:36]} {[%emt 00:00:03]} 6. Re1 {[%clk 01:31:57]} {[%emt
00:00:20]} b5 {[%clk 01:33:02]} {[%emt 00:00:05]} 7. Bb3 {[%clk 01:32:18]}
{[%emt 00:00:08]} d6 {[%clk 01:33:28]} {[%emt 00:00:04]} 8. c3 {[%clk
01:32:36]} {[%emt 00:00:12]} O-O {[%clk 01:33:54]} {[%emt 00:00:05]} 9. h3
{[%clk 01:32:55]} {[%emt 00:00:11]} Na5 {[%clk 01:34:08]} {[%emt 00:00:15]} 10.
Bc2 {[%clk 01:30:35]} {[%emt 00:02:49]} c5 {[%clk 01:34:34]} {[%emt 00:00:06]}
11. d4 {[%clk 01:30:48]} {[%emt 00:00:16]} Nd7 {[%clk 01:34:39]} {[%emt
00:00:26]} 12. d5 {[%clk 01:14:02]} {[%emt 00:17:15]} Nb6 {[%clk 01:35:02]}
{[%emt 00:00:08]} 13. Nbd2 {[%clk 00:59:30]} {[%emt 00:15:01]} c4 {[%clk
01:35:16]} {[%emt 00:00:16]} 14. b4 {[%clk 00:54:22]} {[%emt 00:05:38]} cxb3
{[%clk 01:35:31]} {[%emt 00:00:15]} 15. axb3 {[%clk 00:54:42]} {[%emt
00:00:09]} Nb7 {[%clk 01:35:35]} {[%emt 00:00:28]} 16. Nf1 {[%clk 00:50:53]}
{[%emt 00:04:18]} Bd7 {[%clk 01:30:22]} {[%emt 00:05:44]} 17. Ne3 {[%clk
00:46:29]} {[%emt 00:04:54]} Qc7 {[%clk 01:27:08]} {[%emt 00:03:44]} 18. Bd2
{[%clk 00:46:09]} {[%emt 00:00:49]} a5 {[%clk 01:21:13]} {[%emt 00:06:25]} 19.
Qe2 {[%clk 00:41:44]} {[%emt 00:04:54]} Ra7 {[%clk 01:01:46]} {[%emt 00:19:59]}
20. Ra3 {[%clk 00:37:31]} {[%emt 00:04:42]} Rfa8 {[%clk 00:57:55]} {[%emt
00:04:21]} 21. Rea1 {[%clk 00:35:04]} {[%emt 00:02:57]} Nc5 {[%clk 00:44:59]}
{[%emt 00:13:26]} 22. Qd1 {[%clk 00:25:32]} {[%emt 00:10:01]} a4 {[%clk
00:35:27]} {[%emt 00:10:03]} 23. b4 {[%clk 00:24:23]} {[%emt 00:01:39]} Na6
{[%clk 00:33:49]} {[%emt 00:02:07]} 24. Qe2 {[%clk 00:23:26]} {[%emt 00:01:28]}
Qd8 {[%clk 00:31:11]} {[%emt 00:03:08]} 25. Bd3 {[%clk 00:22:55]} {[%emt
00:01:01]} Qe8 {[%clk 00:29:42]} {[%emt 00:01:59]} 26. Kh2 {[%clk 00:13:43]}
{[%emt 00:09:41]} Nc7 {[%clk 00:24:54]} {[%emt 00:05:19]} 27. g4 {[%clk
00:12:16]} {[%emt 00:01:57]} f6 {[%clk 00:21:49]} {[%emt 00:03:35]} 28. Ne1
{[%clk 00:10:39]} {[%emt 00:02:06]} g6 {[%clk 00:20:19]} {[%emt 00:02:01]} 29.
N1c2 {[%clk 00:10:42]} {[%emt 00:00:27]} Qf7 {[%clk 00:18:40]} {[%emt
00:02:09]} 30. Rg1 {[%clk 00:09:53]} {[%emt 00:01:18]} Kh8 {[%clk 00:17:55]}
{[%emt 00:01:16]} 31. Qf3 {[%clk 00:09:03]} {[%emt 00:01:20]} Rf8 {[%clk
00:15:27]} {[%emt 00:02:58]} 32. Raa1 {[%clk 00:05:48]} {[%emt 00:03:45]} Rb7
{[%clk 00:13:21]} {[%emt 00:02:36]} 33. Na3 {[%clk 00:05:53]} {[%emt 00:00:25]}
Nba8 {[%clk 00:13:00]} {[%emt 00:00:51]} 34. Rg2 {[%clk 00:05:13]} {[%emt
00:01:10]} Ne8 {[%clk 00:11:59]} {[%emt 00:01:31]} 35. c4 {[%clk 00:03:38]}
{[%emt 00:02:05]} Nac7 {[%clk 00:10:40]} {[%emt 00:01:49]} 36. Nxb5 {[%clk
00:03:09]} {[%emt 00:00:58]} Nxb5 {[%clk 00:09:55]} {[%emt 00:01:16]} 37. cxb5
{[%clk 00:03:38]} {[%emt 00:00:01]} Nc7 {[%clk 00:09:57]} {[%emt 00:00:28]} 38.
Rxa4 {[%clk 00:03:04]} {[%emt 00:01:03]} Bxb5 {[%clk 00:08:58]} {[%emt
00:01:30]} 39. Bxb5 {[%clk 00:01:24]} {[%emt 00:02:10]} Nxb5 {[%clk 00:09:02]}
{[%emt 00:00:26]} 40. Nc2 {[%clk 00:01:36]} {[%emt 00:00:17]} Rc8 {[%clk
00:02:21]} {[%emt 00:07:12]} 41. Qd3 {[%clk 00:23:50]} {[%emt 00:08:16]} Qe8
{[%clk 00:32:05]} {[%emt 00:00:46]} 42. Ra2 {[%clk 00:23:17]} {[%emt 00:01:03]}
Bd8 {[%clk 00:32:02]} {[%emt 00:00:33]} 43. Rg1 {[%clk 00:17:17]} {[%emt
00:06:30]} Bb6 {[%clk 00:31:11]} {[%emt 00:01:20]} 44. Kg2 {[%clk 00:17:21]}
{[%emt 00:00:26]} f5 {[%clk 00:23:04]} {[%emt 00:08:38]} 45. exf5 {[%clk
00:10:58]} {[%emt 00:06:53]} gxf5 {[%clk 00:23:19]} {[%emt 00:00:15]} 46. gxf5
{[%clk 00:09:12]} {[%emt 00:02:15]} Rg7+ {[%clk 00:20:58]} {[%emt 00:02:51]} 47.
Kf1 {[%clk 00:09:33]} {[%emt 00:00:09]} Rxg1+ {[%clk 00:21:09]} {[%emt
00:00:20]} 48. Kxg1 {[%clk 00:10:02]} {[%emt 00:00:01]} Qh5 {[%clk 00:20:16]}
{[%emt 00:01:23]} 49. Be1 {[%clk 00:07:57]} {[%emt 00:02:34]} h6 {[%clk
00:10:49]} {[%emt 00:09:58]} 50. Kh2 {[%clk 00:05:39]} {[%emt 00:02:48]} Rg8
{[%clk 00:08:10]} {[%emt 00:03:09]} 51. Ra6 {[%clk 00:02:18]} {[%emt 00:03:51]}
Qg5 {[%clk 00:07:05]} {[%emt 00:01:34]} 52. Qg3 {[%clk 00:02:21]} {[%emt
00:00:28]} Qxf5 {[%clk 00:06:36]} {[%emt 00:00:58]} 53. Qh4 {[%clk 00:02:03]}
{[%emt 00:00:48]} Qg6 {[%clk 00:06:24]} {[%emt 00:00:43]} 54. Qg4 {[%clk
00:01:19]} {[%emt 00:01:14]} Qxc2 {[%clk 00:02:59]} {[%emt 00:03:55]} 55. Qe6
{[%clk 00:00:47]} {[%emt 00:01:02]} Qg6 {[%clk 00:02:24]} {[%emt 00:01:04]} 56.
Qxg6 {[%clk 00:01:05]} {[%emt 00:00:12]} Rxg6 {[%clk 00:02:48]} {[%emt
00:00:07]} 57. Rxb6 {[%clk 00:01:29]} {[%emt 00:00:06]} Nd4 {[%clk 00:03:11]}
{[%emt 00:00:07]} 58. Rb8+ {[%clk 00:00:43]} {[%emt 00:01:15]} Kg7 {[%clk
00:03:16]} {[%emt 00:00:26]} 59. h4 {[%clk 00:00:40]} {[%emt 00:00:33]} Nf3+
{[%clk 00:03:37]} {[%emt 00:00:08]} 60. Kh3 {[%clk 00:01:06]} {[%emt 00:00:04]}
Ng1+ {[%clk 00:03:57]} {[%emt 00:00:10]} 61. Kh2 {[%clk 00:01:31]} {[%emt
00:00:05]} Nf3+ {[%clk 00:04:19]} {[%emt 00:00:09]} 62. Kh3 {[%clk 00:01:57]}
{[%emt 00:00:03]} Ng1+ {[%clk 00:01:39]} {[%emt 00:03:11]} 63. Kh2 {[%clk
00:02:21]} {[%emt 00:00:05]} Nf3+ {[%clk 00:02:01]} {[%emt 00:00:08]} 1/2-1/2

[Event "Schack-SM 2024: Junior-SM"]
[Site "Fortnox Arena, Hejaregatan 5, Vaxjo, Sweden"]
[Date "2024.07.06"]
[Round "8.3"]
[White "Wernberg, Hugo"]
[Black "Grahn, Vidar"]
[Result "1/2-1/2"]
[TimeControl "90 minutes for 40 moves + 30 minutes for the rest of the game + 30 seconds per move from move one."]
[WhiteTitle "FM"]
[BlackTitle "FM"]
[WhiteElo "2208"]
[BlackElo "2264"]

1. c4 {[%clk 01:30:57]} {[%emt 00:00:03]} e5 {[%clk 01:30:49]} {[%emt
00:00:12]} 2. g3 {[%clk 01:30:15]} {[%emt 00:01:12]} Nf6 {[%clk 01:30:26]}
{[%emt 00:00:52]} 3. Bg2 {[%clk 01:30:33]} {[%emt 00:00:12]} c6 {[%clk
01:29:05]} {[%emt 00:01:52]} 4. Nf3 {[%clk 01:30:42]} {[%emt 00:00:21]} e4
{[%clk 01:27:58]} {[%emt 00:01:38]} 5. Nd4 {[%clk 01:30:16]} {[%emt 00:00:55]}
d5 {[%clk 01:25:46]} {[%emt 00:02:42]} 6. cxd5 {[%clk 01:29:55]} {[%emt
00:00:51]} cxd5 {[%clk 01:22:42]} {[%emt 00:03:34]} 7. d3 {[%clk 01:29:36]}
{[%emt 00:00:48]} Bd7 {[%clk 01:18:10]} {[%emt 00:05:03]} 8. Nc3 {[%clk
01:23:59]} {[%emt 00:06:06]} Bb4 {[%clk 01:17:21]} {[%emt 00:01:18]} 9. O-O
{[%clk 01:18:43]} {[%emt 00:05:47]} O-O {[%clk 01:07:54]} {[%emt 00:09:58]} 10.
Bg5 {[%clk 01:08:26]} {[%emt 00:10:47]} Bxc3 {[%clk 01:07:13]} {[%emt
00:01:11]} 11. bxc3 {[%clk 01:08:46]} {[%emt 00:00:09]} h6 {[%clk 00:49:43]}
{[%emt 00:18:01]} 12. Bxf6 {[%clk 01:03:07]} {[%emt 00:06:09]} Qxf6 {[%clk
00:50:04]} {[%emt 00:00:08]} 13. dxe4 {[%clk 00:59:57]} {[%emt 00:03:41]} dxe4
{[%clk 00:50:20]} {[%emt 00:00:14]} 14. Bxe4 {[%clk 00:59:46]} {[%emt
00:00:41]} Nc6 {[%clk 00:50:14]} {[%emt 00:00:35]} 15. e3 {[%clk 00:54:53]}
{[%emt 00:05:23]} Rac8 {[%clk 00:48:32]} {[%emt 00:02:13]} 16. Qf3 {[%clk
00:50:51]} {[%emt 00:04:32]} Qxf3 {[%clk 00:47:45]} {[%emt 00:01:18]} 17. Bxf3
{[%clk 00:49:27]} {[%emt 00:01:52]} b6 {[%clk 00:47:01]} {[%emt 00:01:15]} 18.
Bxc6 {[%clk 00:20:40]} {[%emt 00:29:17]} Bxc6 {[%clk 00:47:21]} {[%emt
00:00:10]} 19. Rfc1 {[%clk 00:21:04]} {[%emt 00:00:05]} Bd5 {[%clk 00:41:46]}
{[%emt 00:06:04]} 20. Kf1 {[%clk 00:21:15]} {[%emt 00:00:20]} Rc5 {[%clk
00:38:53]} {[%emt 00:03:23]} 21. Ke2 {[%clk 00:20:51]} {[%emt 00:00:54]} Rfc8
{[%clk 00:37:57]} {[%emt 00:01:26]} 22. Kd3 {[%clk 00:19:19]} {[%emt 00:02:02]}
Bc4+ {[%clk 00:37:38]} {[%emt 00:00:49]} 23. Kd2 {[%clk 00:19:31]} {[%emt
00:00:19]} g5 {[%clk 00:37:03]} {[%emt 00:01:05]} 24. e4 {[%clk 00:16:59]}
{[%emt 00:03:01]} g4 {[%clk 00:33:11]} {[%emt 00:04:23]} 25. Ke3 {[%clk
00:10:36]} {[%emt 00:06:53]} Be6 {[%clk 00:29:36]} {[%emt 00:04:05]} 26. Kd3
{[%clk 00:08:29]} {[%emt 00:02:37]} Bc4+ {[%clk 00:29:18]} {[%emt 00:00:47]} 27.
Ke3 {[%clk 00:08:50]} {[%emt 00:00:09]} Be6 {[%clk 00:29:43]} {[%emt 00:00:05]}
28. Kd2 {[%clk 00:08:37]} {[%emt 00:00:43]} Bc4 {[%clk 00:28:48]} {[%emt
00:01:25]} 29. Nf5 {[%clk 00:06:36]} {[%emt 00:02:31]} Rd8+ {[%clk 00:28:02]}
{[%emt 00:01:16]} 30. Nd4 {[%clk 00:06:35]} {[%emt 00:00:31]} Rdc8 {[%clk
00:28:27]} {[%emt 00:00:06]} 1/2-1/2